bitfinex-derivatives/quotes_ETHF0:USTF0_20251013
["timestamp","ask_amount","ask_price","bid_price","bid_amount"]
[1760321180011,0.9033,4182.4,4181.5,1.07515]
[1760321180201,0.9033,4182.4,4182.3,3.63778]
[1760321180501,0.90604523,4182.4,4182.3,3.63778]
[1760321180915,0.90604523,4182.4,4182.3,3.2078]
[1760321181907,0.368,4183.0,4182.7,0.42993]
[1760321182099,1.2564,4183.0,4182.9,3.63772]
[1760321182405,0.368,4183.5,4182.9,3.63772]
[1760321182406,0.368,4183.5,4183.4,0.42987]
[1760321182601,1.2564,4183.5,4183.4,3.63767]
[1760321183515,1.2564,4183.5,4183.4,3.2078]
[1760321183708,1.25940355,4183.5,4183.4,3.2078]
[1760321184306,0.3872,4184.5,4183.4,8.21382708]
[1760321184506,0.3872,4184.5,4184.4,3.2078]
[1760321185400,0.39023054,4184.5,4184.4,3.21030064]
[1760321185598,0.39023054,4184.5,4184.4,0.00250064]
[1760321185802,0.39023054,4184.5,4184.4,3.21030064]
[1760321186408,1.27863054,4184.5,4184.4,3.21030064]
[1760321187013,1.27863054,4184.5,4184.4,3.04253685]
[1760321187209,0.8884,4183.8,4183.7,3.2078]
[1760321187408,0.8884,4183.3,4183.2,3.2078]
[1760321187706,0.8884,4182.9,4182.8,3.2078]
[1760321188007,0.3872,4183.0,4182.8,3.2078]
[1760321188008,0.3872,4183.0,4182.9,0.42993]
[1760321188617,0.3872,4184.0,4182.9,1.07483]
[1760321188914,1.70542,4184.0,4183.9,3.2078]
[1760321189215,0.8884,4183.4,4183.3,3.2078]
[1760321192319,0.8884,4183.4,4183.3,3.63769]
[1760321192514,0.3872,4183.5,4183.3,3.63769]
[1760321192714,1.2756,4183.5,4183.3,3.63769]
[1760321192918,0.3872,4183.5,4183.3,3.63769]
[1760321193517,0.39023054,4184.5,4183.5,1.07465]
[1760321193730,0.81999054,4184.5,4184.0,3.6376]
[1760321193925,0.39023054,4184.5,4184.0,3.6376]
[1760321194825,0.39023054,4184.5,4184.3,0.42977]
[1760321195021,0.39023054,4184.5,4184.1,0.42979]
[1760321195330,0.39023054,4184.5,4184.2,0.42978]
[1760321195529,0.39023054,4184.5,4184.0,3.2078]
[1760321195530,1.3182,4184.1,4184.0,3.2078]
[1760321195826,0.42983,4183.8,4183.5,3.2078]
[1760321196029,0.8884,4183.9,4183.7,0.42984]
[1760321196329,0.3872,4184.0,4183.8,0.42983]
[1760321196524,0.8884,4184.4,4183.5,8.21382708]
[1760321196724,0.8884,4184.4,4184.3,3.2078]
[1760321196920,0.8884,4183.9,4183.8,3.2078]
[1760321197128,1.31822,4183.9,4183.8,3.2078]
[1760321197424,0.8884,4183.9,4183.8,3.2078]
[1760321200327,1.31822,4183.9,4183.8,3.2078]
[1760321200728,0.8884,4183.9,4183.8,3.2078]
[1760321202029,0.3872,4184.0,4183.3,3.2078]
[1760321202229,0.8884,4183.4,4183.3,3.2078]
[1760321204436,1.40238,4182.3,4182.2,3.2078]
[1760321204628,0.9724,4181.9,4181.3,1.25746353]
[1760321204830,0.36,4182.0,4181.8,3.63782]
[1760321205232,0.36,4182.5,4182.1,0.43]
[1760321205431,0.36,4183.0,4182.4,3.2078]
[1760321205640,1.76231,4183.0,4182.9,3.2078]
[1760321205836,0.9724,4182.3,4182.2,3.2078]
[1760321206641,0.9724,4182.3,4182.2,3.63779]
[1760321207042,1.40238,4182.3,4182.2,3.2078]
[1760321207437,4.47548385,4182.3,4182.2,3.2078]
[1760321207743,4.47548385,4182.3,4182.1,0.00206526]
[1760321214642,4.47548385,4182.3,4181.0,3.2078]
[1760321214643,0.3787,4181.5,4181.0,3.2078]
[1760321214837,0.4301,4181.2,4181.0,3.2078]
[1760321215033,0.9393,4181.1,4181.0,3.2078]
[1760321215242,0.9393,4181.1,4180.5,3.2078]
[1760321215243,0.3787,4181.0,4180.5,3.2078]
[1760321215437,0.43015,4180.7,4180.5,3.2078]
[1760321215636,3.15719758,4180.9,4180.7,0.43014]
[1760321215842,0.94203428,4180.9,4180.7,0.43014]
[1760321216043,0.9393,4180.8,4180.7,0.43014]
[1760321217145,0.00273428,4180.9,4180.5,3.64032167]
[1760321217447,0.00273428,4180.9,4180.7,0.43014]
[1760321217646,1.07514,4181.7,4180.5,3.21015167]
[1760321217647,0.50138706,4181.9,4180.5,3.21015167]
[1760321217846,0.42999,4182.3,4181.9,0.43002]
[1760321218045,0.43001,4182.0,4181.8,3.2078]
[1760321218347,0.80871,4182.0,4181.8,3.2078]
[1760321218741,0.81051907,4182.0,4181.8,3.2078]
[1760321219445,0.38050907,4182.0,4181.8,3.2078]
[1760321219647,0.00180907,4182.0,4181.8,3.2078]
[1760321220637,0.42994,4182.8,4182.5,0.255]
[1760321220842,0.9393,4183.4,4183.1,0.68489]
[1760321221040,0.9393,4183.4,4182.7,3.2078]
[1760321221041,0.9393,4183.7,4183.3,0.68488]
[1760321221237,0.42982,4183.9,4183.4,0.255]
[1760321221443,0.42984,4183.8,4183.4,0.255]
[1760321221649,0.9393,4183.3,4183.2,3.2078]
[1760321221843,3.12465145,4183.7,4183.2,3.2078]
[1760321222037,0.00207823,4183.8,4183.3,0.42987]
[1760321222242,0.9393,4183.3,4183.2,3.2078]
[1760321222536,1.36923,4182.8,4182.7,3.2078]
[1760321222736,0.9393,4182.3,4182.2,3.2078]
[1760321224140,9.68797031,4185.0,4182.2,3.2078]
[1760321224141,0.82497031,4185.0,4184.9,0.42972]
[1760321224352,0.42966,4185.5,4185.0,0.9681]
[1760321224554,0.9393,4185.5,4185.4,3.2078]
[1760321224750,1.318,4185.5,4185.4,3.2078]
[1760321224948,4.45516208,4185.5,4185.4,3.2078]
[1760321225153,4.45741007,4185.5,4185.4,3.21007122]
[1760321225356,0.94154799,4185.5,4185.4,3.21007122]
[1760321226045,4.45985374,4185.5,4185.4,3.21007122]
[1760321227851,4.45985374,4185.5,4185.4,0.00227122]
[1760321228247,3.52055374,4185.5,4184.3,3.2078]
[1760321228456,1.36907,4184.4,4184.3,3.2078]
[1760321229349,0.9393,4185.4,4184.3,4.17825753]
[1760321229555,0.00224799,4185.5,4184.9,4.1759]
[1760321229751,0.00224799,4185.5,4185.4,3.2078]
[1760321229947,1.37120799,4185.5,4185.4,3.2078]
[1760321230954,0.00224799,4185.5,4185.4,4.1759]
[1760321231758,0.94154799,4185.5,4185.4,3.2078]
[1760321232650,0.00224799,4185.5,4185.4,3.2078]
[1760321232857,0.00224799,4185.5,4185.4,4.1759]
[1760321234456,0.94154799,4185.5,4185.4,3.2078]
[1760321234658,4.35653333,4185.5,4185.4,2.56642651]
[1760321234850,4.35653333,4185.5,4184.0,0.3672]
[1760321234851,0.9393,4184.9,4184.8,3.2078]
[1760321235054,1.36907,4184.4,4184.1,3.2078]
[1760321235448,1.36907,4184.4,4183.6,3.2078]
[1760321235449,4.54312351,4184.4,4183.6,3.2078]
[1760321235863,0.3787,4184.0,4183.6,3.2078]
[1760321236060,0.42984,4183.7,4183.6,3.2078]
[1760321236254,2.01392,4183.7,4183.1,3.2078]
[1760321236559,4.08735246,4183.7,4183.1,3.2078]
[1760321236758,0.42989,4183.3,4183.2,0.9681]
[1760321237155,0.9393,4183.7,4183.1,3.2105022]
[1760321237458,0.42988,4183.4,4183.3,3.2078]
[1760321237762,1.36918,4183.4,4183.3,3.2078]
[1760321237958,3.17479095,4183.9,4183.3,3.2078]
[1760321237959,0.42985,4183.6,4183.3,3.2078]
[1760321238155,1.318,4184.5,4183.4,0.9681]
[1760321238349,0.42982,4184.0,4183.9,3.2078]
[1760321238555,1.318,4184.5,4183.4,3.2078]
[1760321238556,0.42987,4183.6,4183.4,3.2078]
[1760321238750,0.9393,4183.5,4183.4,3.2078]
[1760321239353,0.4299,4183.2,4183.1,0.0027022]
[1760321239559,1.3692,4183.2,4183.1,0.0027022]
[1760321240460,4.51260443,4183.2,4183.1,0.0027022]
[1760321241158,3.2078,4183.6,4183.1,0.0027022]
[1760321241159,0.42989,4183.4,4183.1,0.0027022]
[1760321241359,0.9393,4184.1,4183.3,3.2078]
[1760321241564,1.07435,4184.9,4183.9,3.2078]
[1760321241565,0.42981,4184.2,4183.9,3.2078]
[1760321241863,0.42977,4184.5,4184.0,0.9944]
[1760321242066,1.40847,4184.5,4184.4,3.2078]
[1760321242265,0.4298,4184.2,4183.9,3.2078]
[1760321242462,0.4298,4184.2,4184.0,0.9944]
[1760321242961,3.2078,4184.9,4183.9,3.2078]
[1760321242962,1.40852,4184.0,4183.9,3.2078]
[1760321243164,0.42986,4183.6,4183.4,3.2078]
[1760321243458,0.4299,4183.2,4182.9,3.2078]
[1760321243665,1.4086,4183.2,4182.9,3.2078]
[1760321243855,4.46491452,4183.2,4182.4,3.2078]
[1760321245061,4.46491452,4183.2,4182.6,0.9944]
[1760321245264,4.46491452,4183.2,4183.1,3.2105022]
[1760321245457,0.4299,4183.2,4183.1,3.2105022]
[1760321245662,0.4299,4183.2,4183.1,4.2049022]
[1760321245857,1.4086,4183.2,4183.1,3.2105022]
[1760321246361,1.4086,4183.2,4183.1,0.0027022]
[1760321246966,0.4299,4183.2,4183.1,0.9971022]
[1760321247462,0.42988,4183.5,4183.1,0.0027022]
[1760321248065,3.2078,4183.8,4183.1,0.0027022]
[1760321248366,1.40859,4183.2,4183.1,0.0027022]
[1760321249358,4.54906377,4183.2,4183.1,0.0027022]
[1760321251168,1.40859,4183.2,4183.1,0.0027022]
[1760321251971,1.40859,4183.2,4183.1,3.2105022]
[1760321252268,0.9787,4183.4,4183.1,3.2105022]
[1760321252766,3.10555475,4183.4,4183.2,0.9944]
[1760321252975,0.42985,4183.7,4183.2,1.42429]
[1760321253172,0.42983,4183.9,4183.2,1.68735353]
[1760321253377,0.42977,4184.5,4183.9,0.42982]
[1760321253671,0.42981,4184.1,4183.8,1.25950912]
[1760321253974,4.02436619,4184.8,4183.8,2.25390912]
[1760321254162,5.09871619,4184.8,4183.9,0.9944]
[1760321254363,4.12001619,4184.8,4184.4,3.2078]
[1760321254777,0.42979,4184.2,4183.9,4.2022]
[1760321254970,0.9787,4184.0,4183.9,3.2078]
[1760321255474,0.4298,4184.2,4183.9,3.2078]
[1760321255767,0.4298,4184.2,4184.0,0.9944]
[1760321256472,0.42981,4184.0,4183.9,3.2078]
[1760321256669,1.40851,4184.0,4183.9,3.2078]
[1760321256867,1.80421,4184.0,4183.9,3.2078]
[1760321257065,1.40851,4184.0,4183.9,3.2078]
[1760321257873,1.80421,4184.0,4183.9,3.2078]
[1760321258667,1.80421,4184.0,4183.9,3.18320796]
[1760321258873,0.42989,4183.2,4183.1,0.0027022]
[1760321259077,1.40859,4183.2,4183.1,0.0027022]
[1760321259269,4.48926781,4183.2,4183.1,0.0027022]
[1760321260773,4.48926781,4183.2,4183.0,2.2e-06]
[1760321261068,0.42994,4182.8,4182.7,2.2e-06]
[1760321261271,1.40864,4182.8,4182.7,2.2e-06]
[1760321261477,4.4635242,4182.8,4182.7,2.2e-06]
[1760321261777,4.4635242,4182.8,4182.7,0.00215784]
[1760321262776,4.45496582,4182.8,4182.7,0.00215784]
[1760321263176,7.66276582,4182.8,4182.7,0.00215784]
[1760321264668,7.23282582,4182.8,4181.9,3.2078]
[1760321264874,0.9912,4181.4,4181.3,3.2078]
[1760321265274,1.075,4182.2,4181.3,3.2078]
[1760321265275,0.9912,4182.1,4181.4,0.9429]
[1760321265576,0.3957,4183.0,4182.0,3.2078]
[1760321265577,0.43,4182.2,4182.0,3.2078]
[1760321265773,0.43004,4181.8,4181.7,1.26446898]
[1760321266081,0.43004,4181.8,4181.7,4.47500409]
[1760321267373,0.43004,4181.8,4181.7,3.21053511]
[1760321268882,1.42124,4181.8,4181.7,3.21053511]
[1760321269086,0.00202155,4182.2,4181.7,3.21053511]
[1760321269377,0.00202155,4182.2,4181.7,0.00273511]
[1760321269378,0.9912,4181.8,4181.7,0.00273511]
[1760321269778,4.09044074,4181.8,4181.7,0.00273511]
[1760321269975,0.9912,4181.8,4181.7,0.00273511]
[1760321270178,0.9912,4180.9,4180.4,1.26446898]
[1760321270373,0.9912,4180.9,4180.2,3.2078]
[1760321270374,0.43016,4180.7,4180.2,4.47226898]
[1760321270574,0.43018,4180.5,4180.4,0.9429]
[1760321270770,0.43019,4180.3,4180.2,4.47226898]
[1760321270973,1.42139,4180.3,4180.2,3.2078]
[1760321271177,1.42139,4180.3,4180.2,3.20957467]
[1760321271378,4.46362035,4180.3,4180.2,3.20957467]
[1760321271882,4.46362035,4180.3,4180.2,0.00177467]
[1760321274883,0.9654,4179.0,4178.6,3.2078]
[1760321275081,1.07591,4178.7,4178.1,3.2078]
[1760321275284,0.43041,4178.2,4178.1,3.2078]
[1760321275475,1.39581,4178.2,4178.1,3.2078]
[1760321275677,1.3975596,4178.2,4178.1,3.21036241]
[1760321275879,4.50062384,4178.2,4178.1,0.00256241]
[1760321276082,7.70842384,4178.2,4178.1,2.41e-06]
[1760321282076,0.43063,4176.1,4176.0,3.2078]
[1760321282278,1.39603,4176.1,4176.0,3.2078]
[1760321283082,1.39603,4176.1,4176.0,0.00249024]
[1760321283289,4.44775202,4176.1,4176.0,0.00249024]
[1760321283785,4.44775202,4176.1,4176.0,2.4e-07]
[1760321284187,0.9654,4175.4,4175.0,3.2078]
[1760321284488,1.39613,4175.1,4175.0,3.2078]
[1760321284879,4.44312107,4175.1,4175.0,3.2078]
[1760321285080,4.44480399,4175.1,4175.0,0.00260152]
[1760321285481,4.44480399,4175.1,4175.0,1.52e-06]
[1760321285687,0.3873,4174.5,4173.8,3.2078]
[1760321285885,0.9654,4173.9,4173.8,3.2078]
[1760321286085,0.9654,4173.4,4173.3,3.2078]
[1760321286584,0.9654,4173.9,4173.3,3.20999526]
[1760321286782,4.14202266,4173.4,4173.3,3.20999526]
[1760321286985,0.9654,4173.4,4173.3,3.20999526]
[1760321287382,4.14202266,4173.4,4173.3,3.20999526]
[1760321287983,3.17662266,4173.4,4173.3,3.20999526]
[1760321288488,4.14202266,4173.4,4173.3,3.20999526]
[1760321289085,4.14202266,4173.4,4173.3,0.00219526]
[1760321290587,0.9654,4173.4,4173.3,0.00219526]
[1760321290784,0.3873,4174.0,4173.3,0.00219526]
[1760321290785,0.9654,4173.9,4173.3,3.20999526]
[1760321291190,1.39628,4173.7,4173.3,4.13189526]
[1760321291585,0.9654,4173.4,4173.3,3.20999526]
[1760321294392,0.9654,4174.4,4173.5,0.9219]
[1760321294693,3.18011948,4173.9,4173.3,3.20999526]
[1760321294986,0.43089,4173.6,4173.3,3.20999526]
[1760321295188,0.9654,4173.5,4173.3,4.13189526]
[1760321295390,3.18011948,4173.8,4173.5,0.9219]
[1760321295582,3.18011948,4173.8,4173.4,0.4309]
[1760321295583,0.43087,4173.8,4173.6,0.9219]
[1760321295789,0.9654,4173.5,4173.3,3.20999526]
[1760321295985,0.9654,4173.4,4173.3,0.00219526]
[1760321296188,4.12236383,4173.4,4173.3,0.00219526]
[1760321297697,0.43089,4173.6,4173.3,3.20999526]
[1760321297898,0.9654,4173.9,4173.3,3.20999526]
[1760321298094,0.9654,4173.6,4173.3,3.20999526]
[1760321298295,0.9654,4173.4,4173.3,3.20999526]
[1760321299492,0.9654,4173.4,4173.3,0.00219526]
[1760321299698,4.0957936,4173.4,4173.3,0.00219526]
[1760321299901,4.0957936,4173.4,4173.3,3.20999526]
[1760321300200,0.43085,4173.9,4173.5,0.43089]
[1760321300396,1.3527,4174.0,4173.3,3.20999526]
[1760321300603,0.9654,4173.8,4173.5,0.43088]
[1760321300797,0.9654,4173.6,4173.4,0.4309]
[1760321301096,0.43087,4173.7,4173.3,3.20999526]
[1760321301097,0.9654,4173.4,4173.3,3.20999526]
[1760321302098,4.07918079,4173.4,4173.3,3.20999526]
[1760321304701,0.9134,4173.7,4173.3,3.20999526]
[1760321305403,0.43086,4173.8,4173.3,3.20999526]
[1760321305703,3.6120223,4173.7,4173.3,3.20999526]
[1760321306104,0.9134,4173.4,4173.3,3.20999526]
[1760321306301,0.9134,4173.4,4173.3,0.00219526]
[1760321306601,4.02982042,4173.4,4173.3,0.00219526]
[1760321307305,0.9134,4172.9,4172.8,3.2078]
[1760321307504,0.9134,4172.4,4172.1,3.2078]
[1760321307903,0.9134,4172.2,4172.1,3.2078]
[1760321308294,0.9134,4172.2,4172.1,3.21051715]
[1760321308295,4.02564423,4172.2,4172.1,3.21051715]
[1760321308499,4.02564423,4172.2,4172.1,0.00271715]
[1760321310807,0.355,4172.0,4171.5,3.2078]
[1760321311206,0.43112,4171.3,4171.2,3.629e-05]
[1760321311402,3.63892,4171.3,4171.2,3.629e-05]
[1760321311602,6.75990895,4171.3,4171.2,3.629e-05]
[1760321311900,6.76175381,4171.3,4171.2,0.00306146]
[1760321312507,0.43117,4170.9,4170.5,0.9167]
[1760321312804,6.33063381,4171.3,4170.4,3.2078]
[1760321312805,3.10182446,4170.8,4170.4,3.63901]
[1760321313001,3.2078,4170.7,4170.0,0.80335]
[1760321313208,3.2078,4170.7,4170.1,0.43124]
[1760321313508,3.2078,4170.7,4170.1,0.43419017]
[1760321313509,3.10182446,4170.6,4170.1,0.43419017]
[1760321313901,3.10182446,4170.6,4170.2,0.43123]
[1760321314097,3.10182446,4170.6,4170.5,1.72]
[1760321314302,0.00184486,4171.3,4171.1,0.9167]
[1760321314605,3.16114637,4171.1,4171.0,1.71994]
[1760321314809,3.16114637,4171.1,4170.5,1.2888]
[1760321314810,3.59228637,4171.1,4170.5,1.2888]
[1760321315007,0.43117,4170.8,4170.5,0.3721]
[1760321315309,3.59233637,4170.7,4170.5,0.3721]
[1760321315612,3.16114637,4170.7,4170.6,0.9167]
[1760321315906,0.43118,4170.8,4170.6,0.9167]
[1760321316105,3.13451987,4170.8,4170.7,0.9167]
[1760321316307,0.00184486,4171.3,4170.9,0.9167]
[1760321316308,0.43296486,4171.3,4170.9,0.9167]
[1760321316503,0.43296486,4171.3,4170.8,0.43117]
[1760321316504,0.00184486,4171.3,4171.1,0.9167]
[1760321316704,3.08562911,4171.2,4171.1,0.9167]
[1760321320212,3.08562911,4171.2,4170.6,0.9167]
[1760321320408,0.43119,4170.7,4170.5,0.3721]
[1760321320605,3.2078,4170.9,4170.1,0.91965017]
[1760321320808,3.2078,4170.3,4170.1,0.00295017]
[1760321321011,3.63903,4170.3,4170.1,0.00295017]
[1760321321312,3.16277669,4170.2,4170.1,0.00295017]
[1760321321511,3.16277669,4170.2,4170.1,0.91965017]
[1760321324021,0.00184486,4171.3,4170.1,0.91965017]
[1760321324022,3.2078,4170.9,4170.2,0.902]
[1760321324314,3.10826406,4170.8,4170.4,1.33321]
[1760321324619,3.10826406,4170.8,4170.4,0.43121]
[1760321324820,3.10826406,4170.8,4170.6,0.43119]
[1760321325319,3.10826406,4170.8,4170.6,1.33319]
[1760321325720,3.10826406,4170.8,4170.7,0.902]
[1760321328725,0.00184486,4171.3,4171.1,1.33314]
[1760321329117,3.0711084,4171.2,4171.1,1.33314]
[1760321330325,0.00184486,4171.3,4171.2,0.902]
[1760321330722,3.07489185,4171.3,4171.2,0.902]
[1760321331124,3.07489185,4171.3,4171.0,0.3777]
[1760321331519,3.07489185,4171.3,4171.0,0.80884]
[1760321331826,3.07489185,4171.3,4171.0,0.3777]
[1760321332021,3.07489185,4171.3,4171.1,0.9309]
[1760321332826,3.07489185,4171.3,4171.1,1.36202]
[1760321333024,3.07489185,4171.3,4171.2,0.9309]
[1760321333520,0.00184486,4171.3,4171.2,0.9309]
[1760321334629,3.2078,4172.4,4172.0,0.3736]
[1760321335017,3.14942599,4172.3,4172.0,0.3736]
[1760321335421,3.14942599,4172.3,4172.1,0.9309]
[1760321335627,3.15203818,4172.3,4172.1,0.9309]
[1760321335827,3.15203818,4172.3,4172.2,1.36191]
[1760321336027,0.00261219,4172.3,4172.2,1.36191]
[1760321336727,6.25967206,4172.3,4171.6,1.26446898]
[1760321336922,3.2078,4171.7,4171.5,0.3736]
[1760321337226,3.2078,4172.2,4171.7,0.43107]
[1760321337424,3.2078,4172.2,4172.1,0.9309]
[1760321337729,6.38905486,4172.2,4171.8,0.43105]
[1760321337930,0.43103,4172.1,4171.6,1.36197]
[1760321338230,0.4311,4171.5,4171.1,1.26446898]
[1760321338531,3.12839564,4171.4,4171.1,0.9309]
[1760321339027,3.12839564,4171.6,4171.2,0.9309]
[1760321339228,3.2078,4171.7,4171.3,0.9309]
[1760321339428,3.12839564,4171.6,4171.3,0.9309]
[1760321340125,3.12839564,4171.6,4171.2,0.9309]
[1760321340329,0.43109,4171.5,4171.2,0.9309]
[1760321340732,3.55505387,4171.4,4171.2,0.9309]
[1760321341124,0.43111,4171.4,4171.2,0.9309]
[1760321341428,3.12394387,4171.3,4171.2,2.19536898]
[1760321342328,0.43116,4170.9,4170.7,1.68038796]
[1760321342529,0.43118,4170.6,4170.5,0.3777]
[1760321342833,0.43118,4170.6,4170.5,1.3086]
[1760321342834,3.51659079,4170.6,4170.5,1.3086]
[1760321343034,3.08541079,4170.6,4170.5,1.3086]
[1760321343439,3.08541079,4170.7,4170.6,0.9309]
[1760321343731,0.43118,4170.7,4170.6,0.9309]
[1760321343931,3.49619004,4170.7,4170.6,0.9309]
[1760321344233,3.06501004,4170.7,4170.6,0.9309]
[1760321344930,3.2078,4171.3,4171.0,0.3736]
[1760321345438,3.1411075,4171.2,4171.1,1.36203]
[1760321345632,3.1411075,4171.2,4171.1,0.9309]
[1760321348533,0.43113,4171.1,4171.0,0.3736]
[1760321348836,3.15331191,4171.1,4170.6,0.9309]
[1760321349037,3.2078,4170.7,4170.6,0.9309]
[1760321349243,3.63897,4170.7,4170.6,0.9309]
[1760321349434,6.79228191,4170.7,4170.6,0.9309]
[1760321353442,6.36111191,4170.7,4170.6,0.9309]
[1760321356740,3.2078,4170.7,4170.6,0.9309]
[1760321357043,1.6151,4170.8,4170.7,0.9309]
[1760321360543,1.6151,4170.8,4170.7,1.36209]
[1760321360743,3.2078,4172.2,4172.1,0.9309]
[1760321360935,3.63878,4172.7,4172.2,0.9309]
[1760321361135,3.2078,4172.7,4172.2,0.9309]
[1760321361336,3.2078,4173.3,4173.0,0.3736]
[1760321361741,3.12261804,4173.6,4173.1,0.43094]
[1760321361937,4.45676745,4174.2,4173.6,1.34657]
[1760321361938,0.43082,4174.2,4173.6,1.34657]
[1760321362140,3.2078,4174.4,4174.1,0.43082]
[1760321362343,3.21064941,4174.4,4174.3,0.4308]
[1760321362647,0.00284941,4174.4,4174.3,1.3465]
[1760321362837,0.00284941,4174.4,4174.3,2.18613777]
[1760321363347,0.00284941,4174.4,4174.3,0.9157]
[1760321363745,0.00284941,4174.4,4174.1,4.48118052]
[1760321363746,3.88347333,4174.4,4174.1,0.00294275]
[1760321363947,1.18511,4174.2,4174.1,0.00294275]
[1760321364448,4.31143392,4174.2,4174.1,0.00294275]
[1760321364742,4.31143392,4174.2,4174.1,0.91864275]
[1760321364743,3.12632392,4174.2,4174.1,0.91864275]
[1760321365047,0.00284941,4174.4,4174.3,1.3465]
[1760321365246,0.00284941,4174.4,4174.3,0.9157]
[1760321370344,0.2027,4174.6,4174.5,1.2828]
[1760321371252,0.20470337,4174.6,4174.5,1.2828]
[1760321375844,3.2078,4175.1,4174.5,1.2828]
[1760321376148,0.7543,4176.1,4175.0,1.2828]
[1760321376351,3.2078,4176.2,4175.7,0.9157]
[1760321376648,0.43062,4176.1,4176.0,1.2828]
[1760321377153,0.00291359,4176.1,4176.0,4.92123]
[1760321377350,3.2078,4176.7,4176.6,0.9157]
[1760321377554,3.15095786,4177.8,4176.5,0.79767]
[1760321377555,3.2078,4177.3,4177.0,0.3671]
[1760321377756,3.2078,4177.3,4177.1,0.9157]
[1760321378248,3.2078,4177.3,4177.2,0.9157]
[1760321378452,3.21083262,4177.3,4177.2,0.91772943]
[1760321379158,0.00303262,4177.3,4177.2,0.91772943]
[1760321382252,0.00303262,4177.3,4177.2,0.00202943]
[1760321382452,7.13483817,4177.3,4177.2,0.00202943]
[1760321386157,7.13483817,4177.3,4177.2,2.943e-05]
[1760321386352,7.13483817,4177.3,4176.0,0.3671]
[1760321386553,0.43061,4176.2,4176.0,0.3671]
[1760321386757,0.43061,4176.2,4176.1,0.9382]
[1760321387157,3.63839,4176.4,4176.1,0.9382]
[1760321387456,0.00303262,4177.3,4177.2,0.9382]
[1760321389461,3.2078,4178.3,4178.0,0.3792]
[1760321389757,3.6382,4178.3,4178.0,0.3792]
[1760321389963,0.43045,4177.8,4177.6,0.9382]
[1760321390161,3.2078,4177.7,4177.0,0.3792]
[1760321390462,0.4305,4177.3,4177.1,0.9382]
[1760321390761,0.43051,4177.1,4177.0,1.3174]
[1760321391065,3.20968245,4177.7,4177.1,0.9382]
[1760321391066,3.09769325,4177.6,4177.1,0.9382]
[1760321391364,3.20968245,4177.7,4177.5,0.3792]
[1760321391661,3.64013245,4177.7,4177.6,0.9382]
[1760321393063,0.43233245,4177.7,4177.6,0.9382]
[1760321393858,0.00188245,4177.7,4177.6,0.9382]
[1760321394767,0.43233245,4177.7,4177.6,0.9382]
[1760321400162,0.00188245,4177.7,4177.6,0.9382]
[1760321400762,0.00188245,4177.7,4177.5,3.587]
[1760321400763,3.2078,4178.7,4178.6,0.9736]
[1760321401169,0.7322,4178.6,4178.0,0.3602]
[1760321401369,0.4304,4178.2,4178.1,0.9736]
[1760321401765,0.43214112,4178.2,4178.1,0.9736]
[1760321402460,0.00174112,4178.2,4178.1,0.9736]
[1760321402866,3.2078,4179.3,4179.0,0.3602]
[1760321403064,3.2078,4179.3,4179.1,0.9736]
[1760321403661,0.7322,4180.1,4179.5,0.3602]
[1760321403864,0.43025,4179.7,4179.6,0.9736]
[1760321404264,0.7339,4179.6,4179.5,0.00178862]
[1760321404669,3.87151216,4179.6,4179.5,0.00178862]
[1760321405465,3.13761216,4179.6,4179.5,0.97538862]
[1760321405773,0.43025,4179.7,4179.6,0.9736]
[1760321406672,0.43025,4179.7,4179.5,0.00178862]
[1760321406866,0.43025,4179.7,4179.6,0.9736]
[1760321408575,0.43025,4179.7,4179.5,0.00178862]
[1760321408576,0.7339,4179.6,4179.5,0.00178862]
[1760321408968,3.87604493,4179.6,4179.5,0.00178862]
[1760321410570,3.14214493,4179.6,4179.5,1.33558862]
[1760321411170,3.87604493,4179.6,4179.5,0.00178862]
[1760321411770,3.14214493,4179.6,4179.5,0.97538862]
[1760321412772,3.14214493,4179.6,4179.5,1.33558862]
[1760321412971,3.87604493,4179.6,4179.5,0.97538862]
[1760321413275,3.14214493,4179.6,4179.5,0.97538862]
[1760321413573,3.14214493,4179.6,4179.5,1.33558862]
[1760321414482,0.43025,4179.7,4179.6,0.9736]
[1760321419175,3.2078,4179.9,4179.6,0.9736]
[1760321419176,0.00194338,4180.1,4179.6,0.9736]
[1760321419475,0.00194338,4180.1,4180.0,4.5416]
[1760321419681,3.2078,4180.9,4180.5,0.3602]
[1760321419886,3.2078,4180.9,4180.6,0.9736]
[1760321420473,0.22,4181.3,4180.8,0.43013]
[1760321420779,0.22303454,4181.3,4181.1,0.9736]
[1760321420984,0.22303454,4181.3,4181.2,0.9736]
[1760321422276,0.22303454,4181.3,4181.2,4.1814]
[1760321426289,0.65311454,4181.3,4181.2,0.9736]
[1760321430385,0.4301,4181.1,4181.0,1.2955]
[1760321430589,0.4301,4181.1,4180.5,0.3602]
[1760321430590,1.13375,4180.6,4180.5,0.9353]
[1760321430784,0.4302,4180.1,4179.3,3.2078]
[1760321431275,0.4302,4180.1,4180.0,1.2587]
[1760321434280,0.4302,4180.1,4179.3,3.2078]
[1760321434281,0.43026,4179.6,4179.5,1.26048862]
[1760321434891,0.43026,4179.6,4179.5,0.00178862]
[1760321434892,7.38292328,4179.6,4179.5,0.00178862]
[1760321437582,7.38292328,4179.6,4178.5,0.8985]
[1760321437583,0.43036,4178.6,4178.5,0.8985]
[1760321438187,0.43041,4178.1,4178.0,1.2582]
[1760321438788,0.43326972,4178.1,4178.0,1.2602169]
[1760321441186,0.00285972,4178.1,4178.0,1.2602169]
[1760321441489,11.05694,4180.5,4179.0,1.2582]
[1760321441490,0.43031,4179.1,4179.0,1.2582]
[1760321442492,0.43235622,4179.1,4179.0,1.2582]
[1760321443292,0.43035,4178.7,4178.6,3.2078]
[1760321443592,0.43033,4178.9,4178.6,4.1063]
[1760321443789,0.43033,4178.9,4178.7,0.8985]
[1760321443985,0.43033,4179.0,4178.7,0.8985]
[1760321444283,0.43033,4178.9,4178.7,0.8985]
[1760321444685,0.00204622,4179.1,4178.7,0.8985]
[1760321444889,0.00204622,4179.1,4179.0,1.2582]